[Event "GER-chT Youth Countries 2018"]
[Site "Wurzburg"]
[Date "2018.10.05"]
[Round "5"]
[White "Braeutigam, Katerina"]
[Black "Roncea, Andrea-Alexandra"]
[Result "1/2-1/2"]
[ECO "A13"]
[WhiteElo "1696"]
[BlackElo "1515"]
[Annotator "NA RC"]
[PlyCount "138"]
[EventDate "2018.10.03"]
[EventType "team-tourn"]
[EventCountry "GER"]
[SourceTitle "playchess.com"]
[Source "ChessBase"]
[SourceQuality "1"]
[TimeControl "40/5400+30:1800+30"]

1. c4 {[%emt 0:00:00]} e6 {[%emt 0:00:00]} 2. Nc3 {[%emt 0:00:00]} d5 {[%emt 0:00:00]} 3. cxd5 {[%emt 0:00:00]} exd5 {[%emt 0:00:00]} 4. d4 {[%emt 0:00:00]} Nf6 {[%emt 0:00:00]} 5. g3 {[%emt 0:00:05]} Be7 {[%emt 0:00:06]} 6. Bg2 {[%emt 0:00:11]} O-O {[%emt 0:00:16]} 7. e3 {[%emt 0:00:20]} c6 {[%emt 0:00:15]} 8. Nf3 {[%emt 0:01:11]} Nbd7 {[%emt 0:01:43]} 9. O-O {[%emt 0:00:16]} Re8 {[%emt 0:00:10]} 10. b3 {[%emt 0:00:34]} Nf8 {[%emt 0:00:11]} 11. Bb2 {[%emt 0:00:10]} Bf5 {[%emt 0:03:42]} 12. Rc1 {[%emt 0:00:24]} h6 {[%emt 0:01:46]} 13. Na4 {[%emt 0:05:52]} Ne6 {[%emt 0:01:09]} 14. Nc5 {[%emt 0:00:37]} Nxc5 {[%emt 0:01:36]} 15. dxc5 {[%emt 0:00:12]} Ne4 {[%emt 0:03:30]} 16. b4 {[%emt 0:00:37]} Rc8 {[%emt 0:07:58]} 17. Nd4 {[%emt 0:13:42]} Bh7 {[%emt 0:03:38]} 18. Bh3 {[%emt 0:04:39]} Ra8 {[%emt 0:01:31]} 19. Nf5 {[%emt 0:00:13]} Bf6 {[%emt 0:05:10]} 20. Nd4 {[%emt 0:05:00]} Ng5 {[%emt 0:03:28]} 21. Bg2 {[%emt 0:00:16]} Qe7 {[%emt 0:06:27]} 22. Re1 {[%emt 0:06:54]} Be4 {[%emt 0:09:18]} 23. Ba1 {[%emt 0:04:47]} Bxg2 {[%emt 0:05:10]} 24. Kxg2 {[%emt 0:00:26]} Qe4+ {[%emt 0:00:42]} 25. Nf3 {[%emt 0:00:45]} Nxf3 {[%emt 0:03:36]} 26. Qxf3 {[%emt 0:00:36]} Bxa1 {[%emt 0:00:20]} 27. Rxa1 {[%emt 0:01:07]} Qxb4 {[%emt 0:00:46]} 28. Rec1 {[%emt 0:01:01]} Qe4 {[%emt 0:00:23]} 29. Qxe4 {[%emt 0:02:57]} Rxe4 {[%emt 0:00:42]} 30. Rab1 {[%emt 0:00:45]} Rb8 {[%emt 0:01:33]} 31. Rc2 {[%emt 0:00:40]} a5 {[%emt 0:09:52]} 32. Rb6 {[%emt 0:02:51]} Kh7 {[%emt 0:04:47]} 33. a3 {[%emt 0:01:24]} f6 {[%emt 0:01:53]} 34. Rc3 {[%emt 0:02:42]} Ra4 {[%emt 0:03:23]} 35. f3 {[%emt 0:01:29]} d4 {[%emt 0:00:35]} 36. exd4 {[%emt 0:00:51]} Rxd4 {[%emt 0:00:20]} 37. h4 {[%emt 0:00:46]} Kg6 {[%emt 0:00:59]} 38. Kf2 {[%emt 0:02:15]} Rd5 {[%emt 0:00:45]} 39. Rc4 {[%emt 0:02:14]} Kf7 {[%emt 0:01:51]} 40. Rb3 {[%emt 0:15:15]} Ke6 {[%emt 0:07:04]} 41. Re4+ {[%emt 0:33:52]} Re5 {[%emt 0:34:05]} 42. Ke3 {[%emt 0:08:02]} Kd5 {[%emt 0:02:27]} 43. Rxe5+ {[%emt 0:01:28]} fxe5 {[%emt 0:01:37]} 44. Rc3 {[%emt 0:00:35]} g5 {[%emt 0:00:58]} 45. hxg5 {[%emt 0:01:42]} hxg5 {[%emt 0:00:20]} 46. Kd3 {[%emt 0:01:12]} Rh8 {[%emt 0:00:36]} 47. Kc2 {[%emt 0:02:39]} Rh3 {[%emt 0:01:08]} 48. g4 {[%emt 0:00:19]} Kd4 {[%emt 0:00:31]} 49. Kb3 {[%emt 0:01:34]} a4+ {[%emt 0:00:09]} 50. Kb4 {[%emt 0:00:46]} Rh2 {[%emt 0:00:00]} 51. Rc4+ {[%emt 0:00:00]} Ke3 {[%emt 0:00:00]} 52. Re4+ {[%emt 0:00:00]} Kxf3 {[%emt 0:00:00]} 53. Rxe5 {[%emt 0:00:00]} Kxg4 {[%emt 0:00:00]} 54. Kxa4 {[%emt 0:00:00]} Rb2 {[%emt 0:00:00]} 55. Ka5 {[%emt 0:00:00]} Kf4 {[%emt 0:00:00]} 56. Re7 {[%emt 0:00:00]} Rb5+ {[%emt 0:00:00]} 57. Ka4 {[%emt 0:00:00]} Rxc5 {[%emt 0:00:00]} 58. Rxb7 {[%emt 0:00:00]} Rc4+ {[%emt 0:00:00]} 59. Kb3 {[%emt 0:00:00]} Re4 {[%emt 0:00:00]} 60. a4 {[%emt 0:00:00]} g4 {[%emt 0:00:00]} 61. a5 {[%emt 0:00:00]} g3 {[%emt 0:00:00]} 62. a6 {[%emt 0:00:00]} g2 {[%emt 0:00:00]} 63. Rg7 {[%emt 0:00:00]} Kf3 {[%emt 0:00:00]} 64. a7 {[%emt 0:00:00]} Re8 {[%emt 0:00:04]} 65. Rf7+ {[%emt 0:00:00]} Ke3 {[%emt 0:01:26]} 66. Rg7 {[%emt 0:00:00]} Kf2 {[%emt 0:01:54]} 67. Rf7+ {[%emt 0:00:00]} Ke2 {[%emt 0:02:27]} 68. Rg7 {[%emt 0:00:00]} Kf2 {[%emt 0:00:14]} 69. Rf7+ {[%emt 0:00:00]} Ke3 {[%emt 0:00:20]} 1/2-1/2

[Event "GER-chT Youth Countries 2018"]
[Site "Wurzburg"]
[Date "2018.10.05"]
[Round "5"]
[White "Amato, Cristiano"]
[Black "Muedder, Melanie"]
[Result "1/2-1/2"]
[ECO "B24"]
[WhiteElo "1661"]
[BlackElo "1826"]
[Annotator "NA"]
[PlyCount "75"]
[EventDate "2018.10.03"]
[EventType "team-tourn"]
[EventCountry "GER"]
[SourceTitle "playchess.com"]
[Source "ChessBase"]
[SourceQuality "1"]
[TimeControl "40/5400+30:1800+30"]

1. e4 {[%emt 0:00:00]} c5 {[%emt 0:00:00]} 2. Nc3 {[%emt 0:00:00]} Nc6 {[%emt 0:00:00]} 3. Bb5 {[%emt 0:00:00]} Nd4 {[%emt 0:00:00]} 4. Bc4 {[%emt 0:00:01]} e6 {[%emt 0:00:17]} 5. Nge2 {[%emt 0:00:31]} Nf6 {[%emt 0:01:01]} 6. O-O {[%emt 0:00:36] B23: Closed Sicilian: Lines without g3} a6 {[%emt 0:00:48]} 7. d3 {[%emt 0:00:27]} b5 {[%emt 0:16:32]} 8. Bb3 {[%emt 0:00:14]} Nxb3 {[%emt 0:01:53]} 9. axb3 {[%emt 0:00:04]} Bb7 {[%emt 0:01:45]} 10. f4 {[%emt 0:01:49]} d5 {[%emt 0:02:19]} 11. e5 {[%emt 0:00:29]} Nd7 {[%emt 0:02:18]} 12. f5 {[%emt 0:01:54]} Nxe5 $146 {[%emt 0:04:25]} ({Predecessor:} 12... exf5 13. e6 fxe6 {0-1 (36) Bolivar,J (2086)-Lopez Hernandez,C (2324) Bogota 2013}) 13. fxe6 {[%emt 0:00:26]} f6 {[%emt 0:03:42]} ({Black should try} 13... Bd6 $11) 14. Nf4 {[%emt 0:12:29]} Be7 {[%emt 0:07:15]} 15. Qh5+ {[%emt 0:04:55]} g6 {[%emt 0:04:16]} 16. Qh6 {[%emt 0:03:17]} Bf8 {[%emt 0:06:39]} 17. Qh3 {[%emt 0:01:25]} Be7 {[%emt 0:07:25]} 18. Qh6 {[%emt 0:00:17]} Bf8 {[%emt 0:00:28]} 19. Qh3 {[%emt 0:00:13]} Be7 {[%emt 0:13:41]} 20. Bd2 {[%emt 0:00:49]} O-O {[%emt 0:01:27]} 21. Rae1 {[%emt 0:04:18]} b4 {[%emt 0:03:07]} 22. Nd1 {[%emt 0:01:52]} Qb6 {[%emt 0:02:51] [#]} 23. Kh1 $2 {[%emt 0:02:15]} (23. Ne3 $1 $16) 23... Qd6 $16 {[%emt 0:02:05]} (23... d4 $1 $11) 24. Re3 {[%emt 0:03:29]} f5 {[%emt 0:01:23]} 25. Rg3 {[%emt 0:06:37]} d4 {[%emt 0:08:05]} 26. Nf2 {[%emt 0:03:59]} Bc8 {[%emt 0:01:40]} 27. Qh6 {[%emt 0:00:57]} Bxe6 {[%emt 0:03:28]} 28. Nxg6 {[%emt 0:07:03]} hxg6 {[%emt 0:01:10]} 29. Rxg6+ {[%emt 0:00:26]} Nxg6 {[%emt 0:01:26]} 30. Qxg6+ {[%emt 0:00:08]} Kh8 {[%emt 0:00:10]} 31. Qh6+ {[%emt 0:00:26]} Kg8 {[%emt 0:00:12]} 32. Qg6+ {[%emt 0:00:13]} Kh8 {[%emt 0:00:05]} 33. Qh6+ {[%emt 0:00:07]} Kg8 {[%emt 0:00:03]} 34. Qg6+ {[%emt 0:00:16]} Kh8 {[%emt 0:00:06]} 35. Qh6+ {[%emt 0:00:08]} Kg8 {[%emt 0:00:07]} 36. Qg6+ {[%emt 0:00:06]} Kh8 {[%emt 0:00:06]} 37. Qh6+ {[%emt 0:00:10]} Kg8 {[%emt 0:00:13]} 38. Qg6+ {[%emt 0:00:23]} 1/2-1/2

[Event "GER-chT Youth Countries 2018"]
[Site "Wurzburg"]
[Date "2018.10.05"]
[Round "5"]
[White "Grunert, Wilhelm"]
[Black "Weimert, Miriam"]
[Result "1-0"]
[ECO "B28"]
[WhiteElo "1659"]
[BlackElo "1776"]
[Annotator "NA RC"]
[PlyCount "97"]
[EventDate "2018.10.03"]
[EventType "team-tourn"]
[EventCountry "GER"]
[SourceTitle "playchess.com"]
[Source "ChessBase"]
[SourceQuality "1"]
[TimeControl "40/5400+30:1800+30"]

1. e4 {[%emt 0:00:00]} c5 {[%emt 0:00:00]} 2. Nf3 {[%emt 0:00:00]} a6 {[%emt 0:00:00]} 3. d4 {[%emt 0:00:00]} cxd4 {[%emt 0:01:38]} 4. Nxd4 {[%emt 0:00:00]} Nf6 {[%emt 0:00:16]} 5. Nc3 {[%emt 0:00:05]} e5 {[%emt 0:00:24]} 6. Nb3 {[%emt 0:00:24]} Bb4 {[%emt 0:00:42]} 7. Bd2 {[%emt 0:02:18]} O-O {[%emt 0:04:41]} 8. f3 {[%emt 0:00:35]} Nc6 {[%emt 0:05:28]} 9. a3 {[%emt 0:00:44]} Bxc3 {[%emt 0:00:08]} 10. Bxc3 {[%emt 0:00:04]} d5 {[%emt 0:01:39]} 11. exd5 {[%emt 0:01:00]} Nxd5 {[%emt 0:00:24]} 12. Qd2 {[%emt 0:00:35]} Nxc3 {[%emt 0:02:11]} 13. Qxc3 {[%emt 0:00:13]} e4 {[%emt 0:01:56]} 14. Nd2 {[%emt 0:05:40]} Qh4+ {[%emt 0:12:47]} 15. g3 {[%emt 0:00:34]} Qe7 {[%emt 0:00:30]} 16. O-O-O {[%emt 0:01:20]} e3 {[%emt 0:04:12]} 17. Ne4 {[%emt 0:01:10]} f5 {[%emt 0:00:24]} 18. Bc4+ {[%emt 0:00:23]} Kh8 {[%emt 0:00:40]} 19. Nd6 {[%emt 0:00:31]} e2 {[%emt 0:01:48]} 20. Rd3 {[%emt 0:04:50]} Rf6 {[%emt 0:17:13]} 21. Nf7+ {[%emt 0:04:04]} Rxf7 {[%emt 0:00:49]} 22. Re3 {[%emt 0:01:31]} Qf8 {[%emt 0:01:39]} 23. Bxf7 {[%emt 0:00:41]} Qxf7 {[%emt 0:00:16]} 24. Re1 {[%emt 0:00:54]} Bd7 {[%emt 0:01:08]} 25. Kb1 {[%emt 0:00:20]} h6 {[%emt 0:02:10]} 26. R1xe2 {[%emt 0:00:10]} Rd8 {[%emt 0:02:39]} 27. Rd3 {[%emt 0:00:55]} Re8 {[%emt 0:05:12]} 28. Rde3 {[%emt 0:02:53]} Rc8 {[%emt 0:00:34]} 29. Qd2 {[%emt 0:00:45]} f4 {[%emt 0:02:50]} 30. Rd3 {[%emt 0:03:04]} Bf5 {[%emt 0:03:00]} 31. Qxf4 {[%emt 0:01:13]} Qg6 {[%emt 0:00:21]} 32. Rd6 {[%emt 0:02:10]} Qh7 {[%emt 0:01:32]} 33. g4 {[%emt 0:00:38]} Bg6 {[%emt 0:00:15]} 34. h4 {[%emt 0:01:37]} Bxc2+ {[%emt 0:01:58]} 35. Rxc2 {[%emt 0:02:47]} Nd4 {[%emt 0:00:47]} 36. Qxd4 {[%emt 0:00:23]} Qxc2+ {[%emt 0:00:09]} 37. Ka2 {[%emt 0:00:08]} Kg8 {[%emt 0:07:49]} 38. h5 {[%emt 0:04:37]} Qc1 {[%emt 0:03:01]} 39. Rd7 {[%emt 0:02:35]} Qg5 {[%emt 0:00:33]} 40. Rxb7 {[%emt 0:00:45]} a5 {[%emt 0:02:19]} 41. Rb6 {[%emt 0:31:00]} Rf8 {[%emt 0:34:21]} 42. Rg6 {[%emt 0:01:53]} Qe7 {[%emt 0:00:15]} 43. Qd5+ {[%emt 0:00:45]} Kh8 {[%emt 0:00:23]} 44. g5 {[%emt 0:04:56]} Rd8 {[%emt 0:01:12]} 45. Qe6 {[%emt 0:01:17]} Qxe6+ {[%emt 0:02:56]} 46. Rxe6 {[%emt 0:00:07]} hxg5 {[%emt 0:00:56]} 47. Re5 {[%emt 0:00:09]} Rf8 {[%emt 0:00:17]} 48. Rxa5 {[%emt 0:00:12]} Rxf3 {[%emt 0:00:11]} 49. Rxg5 {[%emt 0:00:06]} 1-0

[Event "GER-chT Youth Countries 2018"]
[Site "Wurzburg"]
[Date "2018.10.05"]
[Round "5"]
[White "Hentschel, Lena"]
[Black "Alferova, Emily"]
[Result "1-0"]
[ECO "D00"]
[WhiteElo "1533"]
[BlackElo "1316"]
[Annotator "NA RC"]
[PlyCount "58"]
[EventDate "2018.10.03"]
[EventType "team-tourn"]
[EventCountry "GER"]
[SourceTitle "playchess.com"]
[Source "ChessBase"]
[SourceQuality "1"]
[TimeControl "40/5400+30:1800+30"]

1. d4 {[%emt 0:00:00]} d5 {[%emt 0:00:00]} 2. Bf4 {[%emt 0:00:00]} Bf5 {[%emt 0:00:00]} 3. Nf3 {[%emt 0:00:15]} c6 {[%emt 0:01:03]} 4. c3 {[%emt 0:01:30]} h6 {[%emt 0:00:48]} 5. e3 {[%emt 0:02:04]} Nf6 {[%emt 0:01:04]} 6. h3 {[%emt 0:02:23]} e6 {[%emt 0:00:38]} 7. Be2 {[%emt 0:01:23]} Bd6 {[%emt 0:03:07]} 8. Ne5 {[%emt 0:02:56]} Ne4 {[%emt 0:09:46]} 9. O-O {[%emt 0:06:30]} O-O {[%emt 0:03:53]} 10. f3 {[%emt 0:03:40]} Nf6 {[%emt 0:02:50]} 11. Bd3 {[%emt 0:03:46]} Bxd3 {[%emt 0:04:37]} 12. Qxd3 {[%emt 0:00:24]} c5 {[%emt 0:06:58]} 13. Nd2 {[%emt 0:04:56]} c4 {[%emt 0:01:45]} 14. Qe2 {[%emt 0:03:37]} Re8 {[%emt 0:01:44]} 15. Bh2 {[%emt 0:02:27]} Qc7 {[%emt 0:02:43]} 16. Kh1 {[%emt 0:04:58]} Nbd7 {[%emt 0:04:08]} 17. Nxd7 {[%emt 0:02:40]} Bxh2 {[%emt 0:00:17]} 18. Nxf6+ {[%emt 0:00:10]} gxf6 {[%emt 0:00:13]} 19. f4 {[%emt 0:01:09]} Bxf4 {[%emt 0:00:43]} 20. Rxf4 {[%emt 0:02:16]} Qe7 {[%emt 0:02:12]} 21. Qh5 {[%emt 0:02:44]} Qf8 {[%emt 0:01:44]} 22. Rxf6 {[%emt 0:01:20]} Qg7 {[%emt 0:00:16]} 23. Raf1 {[%emt 0:01:35]} Re7 {[%emt 0:00:53]} 24. R1f4 {[%emt 0:02:12]} Kf8 {[%emt 0:02:08]} 25. Qxh6 {[%emt 0:01:36]} Qxh6 {[%emt 0:00:28]} 26. Rxh6 {[%emt 0:00:05]} Ree8 {[%emt 0:00:13]} 27. Rh8+ {[%emt 0:00:47]} Ke7 {[%emt 0:00:07]} 28. Rxe8+ {[%emt 0:00:23]} Rxe8 {[%emt 0:00:05]} 29. Nf3 {[%emt 0:00:49]} f6 {[%emt 0:01:15]} 1-0

[Event "GER-chT Youth Countries 2018"]
[Site "Wurzburg"]
[Date "2018.10.05"]
[Round "5"]
[White "Schulz, Hannah"]
[Black "Schwenke, Mia"]
[Result "1-0"]
[ECO "B35"]
[WhiteElo "1527"]
[BlackElo "1203"]
[Annotator "NA"]
[PlyCount "79"]
[EventDate "2018.10.03"]
[EventType "team-tourn"]
[EventCountry "GER"]
[SourceTitle "playchess.com"]
[Source "ChessBase"]
[SourceQuality "1"]
[TimeControl "40/5400+30:1800+30"]

1. e4 {[%emt 0:00:00]} c5 {[%emt 0:00:00]} 2. Nf3 {[%emt 0:00:00]} Nc6 {[%emt 0:00:00]} 3. d4 {[%emt 0:00:00]} cxd4 {[%emt 0:00:03]} 4. Nxd4 {[%emt 0:00:00]} g6 {[%emt 0:00:14]} 5. Nc3 {[%emt 0:00:05]} Bg7 {[%emt 0:00:21]} 6. Be3 {[%emt 0:00:52]} Nf6 {[%emt 0:00:10]} 7. Bc4 {[%emt 0:01:48]} O-O {[%emt 0:00:20]} 8. f3 {[%emt 0:00:23]} Qb6 {[%emt 0:01:00]} 9. Bb3 {[%emt 0:04:31]} Nxe4 {[%emt 0:00:38]} 10. Na4 {[%emt 0:03:20]} Qa5+ {[%emt 0:04:53]} 11. c3 {[%emt 0:03:21]} Nf6 {[%emt 0:02:08]} 12. Qd2 {[%emt 0:03:53]} Qe5 {[%emt 0:02:25]} 13. Nxc6 {[%emt 0:06:30]} bxc6 {[%emt 0:00:38]} 14. O-O-O {[%emt 0:00:46]} d5 {[%emt 0:09:36]} 15. Nc5 {[%emt 0:03:30]} Nd7 {[%emt 0:07:36]} 16. Nd3 {[%emt 0:01:09]} Qd6 {[%emt 0:04:58]} 17. h4 {[%emt 0:02:21]} c5 {[%emt 0:01:11]} 18. Nf2 {[%emt 0:05:32]} e6 {[%emt 0:01:34]} 19. h5 {[%emt 0:01:51]} Qa6 {[%emt 0:11:04]} 20. Bh6 {[%emt 0:05:44]} c4 {[%emt 0:01:32]} 21. hxg6 {[%emt 0:12:21]} fxg6 {[%emt 0:11:17]} 22. Bc2 {[%emt 0:04:01]} Rb8 {[%emt 0:02:41]} 23. Bb1 {[%emt 0:05:58]} Qb6 {[%emt 0:00:47]} 24. Bxg7 {[%emt 0:01:25]} Rf7 {[%emt 0:00:21]} 25. Bd4 {[%emt 0:00:47]} Qb7 {[%emt 0:00:35]} 26. Bxg6 {[%emt 0:01:10]} Rg7 {[%emt 0:01:06]} 27. Bxg7 {[%emt 0:00:26]} Kxg7 {[%emt 0:00:49]} 28. Qh6+ {[%emt 0:01:05]} Kf6 {[%emt 0:00:13]} 29. Ng4+ {[%emt 0:00:42]} Ke7 {[%emt 0:00:09]} 30. Qxh7+ {[%emt 0:00:56]} Kd6 {[%emt 0:00:07]} 31. Qh2+ {[%emt 0:00:36]} Kc6 {[%emt 0:00:25]} 32. Rd2 {[%emt 0:00:56]} Nc5 {[%emt 0:00:46]} 33. Ne5+ {[%emt 0:00:35]} Kb6 {[%emt 0:00:09]} 34. Qg1 {[%emt 0:02:03]} Ka6 {[%emt 0:00:28]} 35. Qxc5 {[%emt 0:00:38]} Qg7 {[%emt 0:01:00]} 36. Qa3+ {[%emt 0:00:52]} Kb6 {[%emt 0:00:10]} 37. Nxc4+ {[%emt 0:01:23]} dxc4 {[%emt 0:00:09]} 38. Rd6+ {[%emt 0:00:16]} Kb7 {[%emt 0:00:09]} 39. Rh7 {[%emt 0:00:18]} Qc7 {[%emt 0:00:31]} 40. Be4# 1-0

[Event "GER-chT Youth Countries 2018"]
[Site "Wurzburg"]
[Date "2018.10.05"]
[Round "5"]
[White "Keymer, Cecilia"]
[Black "Woerz, Ann-Sophie"]
[Result "1/2-1/2"]
[ECO "D60"]
[WhiteElo "1479"]
[BlackElo "1463"]
[Annotator "NA RC"]
[PlyCount "115"]
[EventDate "2018.10.03"]
[EventType "team-tourn"]
[EventCountry "GER"]
[SourceTitle "playchess.com"]
[Source "ChessBase"]
[SourceQuality "1"]
[TimeControl "40/5400+30:1800+30"]

1. d4 {[%emt 0:00:00]} e6 {[%emt 0:00:00]} 2. c4 {[%emt 0:00:00]} d5 {[%emt 0:00:00]} 3. Nf3 {[%emt 0:00:15]} Nf6 {[%emt 0:01:03]} 4. Nc3 {[%emt 0:00:34]} Be7 {[%emt 0:03:46]} 5. Bg5 {[%emt 0:00:54]} Nbd7 {[%emt 0:03:25]} 6. e3 {[%emt 0:00:45]} O-O {[%emt 0:03:41]} 7. cxd5 {[%emt 0:03:54]} exd5 {[%emt 0:00:40]} 8. Bd3 {[%emt 0:00:56]} c6 {[%emt 0:01:51]} 9. Qc2 {[%emt 0:00:55]} Re8 {[%emt 0:00:19]} 10. h3 {[%emt 0:00:38]} Nf8 {[%emt 0:02:14]} 11. Ne5 {[%emt 0:03:15]} N6d7 {[%emt 0:02:09]} 12. Bxe7 {[%emt 0:01:41]} Rxe7 {[%emt 0:01:29]} 13. Nf3 {[%emt 0:02:43]} Nf6 {[%emt 0:03:58]} 14. O-O-O {[%emt 0:04:00]} b5 {[%emt 0:02:22]} 15. Ne5 {[%emt 0:03:20]} Qd6 {[%emt 0:04:17]} 16. g4 {[%emt 0:03:39]} N6d7 {[%emt 0:06:36]} 17. Nxd7 {[%emt 0:03:24]} Bxd7 {[%emt 0:00:56]} 18. Rdg1 {[%emt 0:04:34]} a5 {[%emt 0:01:51]} 19. Ne2 {[%emt 0:02:36]} Rc8 {[%emt 0:02:52]} 20. Kb1 {[%emt 0:01:56]} c5 {[%emt 0:01:51]} 21. dxc5 {[%emt 0:01:58]} Rxc5 {[%emt 0:02:15]} 22. Qd2 {[%emt 0:03:01]} Ne6 {[%emt 0:05:09]} 23. Rc1 {[%emt 0:05:54]} Rxc1+ {[%emt 0:02:07]} 24. Qxc1 {[%emt 0:02:46]} Bc6 {[%emt 0:03:26]} 25. Ng3 {[%emt 0:05:07]} Rc7 {[%emt 0:05:08]} 26. Qd2 {[%emt 0:04:15]} b4 {[%emt 0:01:49]} 27. Rc1 {[%emt 0:03:44]} Ng5 {[%emt 0:05:43]} 28. Bf1 {[%emt 0:02:22]} Qg6+ {[%emt 0:04:00]} 29. Ka1 {[%emt 0:01:25]} Rd7 {[%emt 0:03:14]} 30. Bg2 {[%emt 0:04:57]} Ne4 {[%emt 0:06:00]} 31. Nxe4 {[%emt 0:02:16]} dxe4 {[%emt 0:00:20]} 32. Qc2 {[%emt 0:01:26]} Rd8 {[%emt 0:03:50]} 33. Kb1 {[%emt 0:06:42]} Bb5 {[%emt 0:07:54]} 34. Bxe4 {[%emt 0:06:29]} Qh6 {[%emt 0:02:45]} 35. Rh1 {[%emt 0:03:29]} g6 {[%emt 0:01:40]} 36. Ka1 {[%emt 0:03:03]} Qf8 {[%emt 0:00:57]} 37. Rd1 {[%emt 0:02:06]} Rc8 {[%emt 0:01:42]} 38. Qd2 {[%emt 0:01:09]} Qe7 {[%emt 0:01:19]} 39. Bg2 {[%emt 0:01:03]} Ba4 {[%emt 0:01:37]} 40. Rc1 {[%emt 0:00:51]} Rd8 {[%emt 0:02:35]} 41. Qe2 {[%emt 0:32:13]} Qe6 {[%emt 0:03:13]} 42. Kb1 {[%emt 0:00:00]} Qb6 {[%emt 0:02:42]} 43. Be4 {[%emt 0:00:00]} Bb5 {[%emt 0:02:10]} 44. Qc2 {[%emt 0:00:00]} Qf6 {[%emt 0:03:37]} 45. f4 {[%emt 0:00:00]} Re8 {[%emt 0:02:40]} 46. Qg2 {[%emt 0:00:00]} Qe6 {[%emt 0:01:30]} 47. Rc5 {[%emt 0:00:00]} Qxe4+ {[%emt 0:01:13]} 48. Qxe4 {[%emt 0:00:00]} Rxe4 {[%emt 0:00:11]} 49. Rxb5 {[%emt 0:00:00]} Rxe3 {[%emt 0:00:14]} 50. Rxa5 {[%emt 0:00:00]} Rxh3 {[%emt 0:01:22]} 51. Rb5 {[%emt 0:00:00]} Rh4 {[%emt 0:00:59]} 52. Rxb4 {[%emt 0:00:00]} Rxg4 {[%emt 0:00:15]} 53. a4 {[%emt 0:00:00]} g5 {[%emt 0:01:46]} 54. a5 {[%emt 0:00:00]} gxf4 {[%emt 0:02:03]} 55. Ka2 {[%emt 0:00:00]} Rg5 {[%emt 0:00:55]} 56. Ra4 {[%emt 0:00:00]} f3 57. a6 f2 58. a7 1/2-1/2

[Event "GER-chT Youth Countries 2018"]
[Site "Wurzburg"]
[Date "2018.10.05"]
[Round "5"]
[White "Zell, Hannah"]
[Black "Fock, Amina"]
[Result "1/2-1/2"]
[ECO "B20"]
[WhiteElo "1469"]
[BlackElo "1816"]
[Annotator "NA RC"]
[PlyCount "88"]
[EventDate "2018.10.03"]
[EventType "team-tourn"]
[EventCountry "GER"]
[SourceTitle "playchess.com"]
[Source "ChessBase"]
[SourceQuality "1"]
[TimeControl "40/5400+30:1800+30"]

1. e4 {[%emt 0:00:00]} c5 {[%emt 0:00:00]} 2. c4 {[%emt 0:00:00]} Nc6 {[%emt 0:00:00]} 3. g3 {[%emt 0:00:24]} g6 {[%emt 0:00:18]} 4. Bg2 {[%emt 0:00:37]} Bg7 {[%emt 0:00:22]} 5. Nc3 {[%emt 0:00:38]} Rb8 {[%emt 0:02:28]} 6. Nge2 {[%emt 0:02:46]} a6 {[%emt 0:01:43]} 7. a4 {[%emt 0:01:06]} Nf6 {[%emt 0:05:10]} 8. O-O {[%emt 0:02:31]} O-O {[%emt 0:01:07]} 9. d3 {[%emt 0:00:57]} Ne8 {[%emt 0:02:04]} 10. f4 {[%emt 0:05:52]} Nc7 {[%emt 0:07:15]} 11. Be3 {[%emt 0:09:20]} Nd4 {[%emt 0:02:24]} 12. Rb1 {[%emt 0:05:39]} b5 {[%emt 0:19:42]} 13. b3 {[%emt 0:12:58]} Nce6 {[%emt 0:04:33]} 14. axb5 {[%emt 0:04:57]} Nxe2+ {[%emt 0:00:58]} 15. Nxe2 {[%emt 0:00:34]} axb5 16. f5 {[%emt 0:08:04]} Nd4 {[%emt 0:04:38]} 17. Bxd4 {[%emt 0:02:59]} cxd4 {[%emt 0:00:43]} 18. h4 {[%emt 0:06:06]} e5 {[%emt 0:16:52]} 19. Bh3 {[%emt 0:13:10]} h5 {[%emt 0:03:22]} 20. Kh2 {[%emt 0:03:48]} g5 {[%emt 0:06:15]} 21. hxg5 Qxg5 {[%emt 0:00:11]} 22. Ng1 {[%emt 0:01:36]} h4 {[%emt 0:02:54]} 23. Qf3 {[%emt 0:03:04]} Rb6 {[%emt 0:02:40]} 24. gxh4 Qxh4 {[%emt 0:00:29]} 25. Qg4 {[%emt 0:03:40]} Rh6 {[%emt 0:03:01]} 26. Qxh4 Rxh4 {[%emt 0:00:06]} 27. Rb2 {[%emt 0:01:24]} Kh8 28. Rg2 Bf6 {[%emt 0:04:34]} 29. Nf3 {[%emt 0:06:06]} Rh5 {[%emt 0:01:22]} 30. Rg3 {[%emt 0:01:07]} Rg8 {[%emt 0:01:06]} 31. Rfg1 {[%emt 0:01:01]} Rxg3 {[%emt 0:00:48]} 32. Rxg3 {[%emt 0:00:20]} d6 {[%emt 0:04:14]} 33. Kg1 {[%emt 0:01:33]} Bd7 {[%emt 0:01:56]} 34. Bf1 {[%emt 0:01:21]} Bg7 {[%emt 0:01:10]} 35. Be2 {[%emt 0:00:42]} Rh6 {[%emt 0:01:00]} 36. Bd1 {[%emt 0:01:10]} bxc4 {[%emt 0:00:56]} 37. bxc4 {[%emt 0:00:07]} Be8 {[%emt 0:00:14]} 38. Kg2 {[%emt 0:01:21]} f6 {[%emt 0:00:31]} 39. Rh3 {[%emt 0:01:16]} Rxh3 {[%emt 0:01:24]} 40. Kxh3 {[%emt 0:00:06]} Bh6 {[%emt 0:00:33]} 41. Kg4 {[%emt 0:31:25]} Kg7 {[%emt 0:01:48]} 42. Nh4 {[%emt 0:00:00]} Bg5 {[%emt 0:06:55]} 43. Ng6 {[%emt 0:00:00]} Kf7 {[%emt 0:07:13]} 44. Bb3 {[%emt 0:00:00]} Kg7 {[%emt 0:01:36]} 1/2-1/2